Workbook

Sheet Sheet1
A1: 23 West Main Rent Roll
C2: Updated | D2: 2025-11-01
A3: Unit # | B3: Aprox. Unit Size | C3: Base Rate per S/F | D3: Monthly Base Rent | E3: Monthly Additional Rent (NNN) | F3: Monthly Total Rent | G3: Annual Total Rent | H3: Start Date | I3: End Date | J3: Options
A4: Net lease enter base rent in column D
A5: 101 | B5: =[1]Expenses!E5 -> 1750 | C5: =(D5/B5)*12 -> 27.42857143 | D5: 4000 | E5: =[1]Expenses!G5 -> 1191.666667 | F5: =SUM(D5:E5) -> 5191.666667 | G5: =F5*12 -> 62300 | H5: 2025-03-01 | I5: 2035-02-28 | J5: none
A6: Basement | B6: =[1]Expenses!E6 -> 600 | C6: =(D6*12)/B6 -> 0 | E6: ='[2] EXPENSES'!G6 -> 0 | F6: =SUM(D6:E6) -> 0 | G6: =F6*12 -> 0
A7: TOTAL | B7: =SUM(B5:B6) -> 2350 | C7: =(D7*12)/B7 -> 20.42553191 | D7: =SUM(D5:D6) -> 4000 | E7: =SUM(E5:E6) -> 1191.666667 | F7: =SUM(F5:F6) -> 5191.666667 | G7: =SUM(G5:G6) -> 62300
A8: Gross leases enter rent in column F
A9: 201 | B9: =[1]Expenses!E9 -> 103 | C9: =(D9/B9)*12 -> 40.77669903 | D9: 350 | E9: =IF((D9>0),[1]Expenses!G9,0) -> 206 | F9: =D9+E9 -> 556 | G9: =F9*12 -> 6672 | H9: 2024-05-01 | I9: 2025-04-30 | J9: carryover
A10: 202 | B10: =[1]Expenses!E10 -> 281 | C10: 12.8113879 | D10: 300 | E10: =IF((D10>0),[1]Expenses!G10,0) -> 532.17 | F10: =D10+E10 -> 832.17 | G10: =F10*12 -> 9986.04 | H10: 2025-01-01 | I10: 2026-06-30 | J10: None
A11: 203 | B11: =[1]Expenses!E11 -> 143 | C11: 37.78993007 | D11: 450.33 | E11: =IF((D11>0),[1]Expenses!G11,0) -> 274.67 | F11: =D11+E11 -> 725 | G11: =F11*12 -> 8700 | H11: 2025-11-01 | I11: 2026-10-31 | J11: None
A12: 204 | B12: =[1]Expenses!E12 -> 105 | C12: 59.31428571 | D12: 519 | E12: =IF((D12>0),[1]Expenses!G12,0) -> 206 | F12: =D12+E12 -> 725 | G12: =F12*12 -> 8700 | H12: 2025-11-01 | I12: 2026-10-31 | J12: None
A13: 205 | B13: =[1]Expenses!E13 -> 118 | C13: 48.49118644 | D13: =F13-E13 -> 476.83 | E13: =IF((F13>0),[1]Expenses!G13,0) -> 223.17 | F13: 700 | G13: 8400 | H13: 2022-03-01 | I13: M/M | J13: None
A14: 206 | B14: =[1]Expenses!E14 -> 144 | C14: 18.135 | D14: 217.62 | E14: =IF((D14>0),[1]Expenses!G14,0) -> 274.67 | F14: =D14+E14 -> 492.29 | G14: 5907.48 | H14: 2024-05-01 | I14: 2025-04-30 | J14: carryover
A15: Pad | D15: 274.35 | F15: =D15+E15 -> 274.35 | G15: 3292.2 | H15: 2010-08-01 | I15: 2040-07-31 | J15: 1-30Yr.
A16: TOTAL | B16: =SUM(B9:B15) -> 894 | D16: =SUM(D9:D15) -> 2588.13 | E16: =SUM(E9:E15) -> 1716.68 | F16: =SUM(F9:F15) -> 4304.81 | G16: =SUM(G9:G15) -> 51657.72
A17: GRAND TOTAL | B17: =B7+B16 -> 3244 | D17: =SUM(D7,D16) -> 6588.13 | E17: =SUM(E7,E16) -> 2908.346667 | F17: =SUM(F7,F16) -> 9496.476667 | G17: =SUM(G7,G16) -> 113957.72
A18: CURRENT NOI | D18: =D17*12 -> 79057.56
D20: Enter current monthly rent
